fUST/lending_fUST_20240824
["ID","MTS","AMOUNT","RATE_DAILY","PERIOD"]
[335725093,1724464244306,-687.53,0.00013698,2]
[335725094,1724464244316,-500.0,0.00013698,2]
[335725095,1724464244325,-500.0,0.00013698,2]
[335725096,1724464244334,-592.0,0.00013698,2]
[335725097,1724464244344,-500.0,0.00013698,2]
[335725098,1724464244353,-500.0,0.00013698,2]
[335725099,1724464244362,-1876.28,0.00013698,2]
[335725100,1724464244372,-4725.38,0.00013698,2]
[335725101,1724464244381,-500.94363592,0.00013698,2]
[335725102,1724464244390,-500.0,0.00013698,2]
[335725103,1724464244400,-823.21,0.00013698,2]
[335725104,1724464244409,-605.47,0.00013698,2]
[335725105,1724464244418,-723.75,0.00013698,2]
[335725106,1724464244428,-520.97451385,0.00013698,2]
[335725107,1724464244437,-699.58,0.00013698,2]
[335725108,1724464244446,-1240.47,0.00013698,2]
[335725109,1724464244455,-500.0,0.00013698,2]
[335725110,1724464244465,-500.0,0.00013698,2]
[335725111,1724464244474,-500.0,0.00013698,2]
[335725112,1724464244484,-5084.82,0.00013698,2]
[335725113,1724464244493,-542.46,0.00013698,2]
[335725114,1724464244503,-500.0,0.00013698,2]
[335725115,1724464244514,-500.0,0.00013698,2]
[335725116,1724464244523,-548.96,0.00013698,2]
[335725117,1724464244532,-500.0,0.00013698,2]
[335725118,1724464244541,-672.36,0.00013698,2]
[335725119,1724464244552,-500.0,0.00013698,2]
[335725120,1724464244563,-2247.22,0.00013698,2]
[335725121,1724464244572,-1092.86,0.00013698,2]
[335725122,1724464244582,-500.0,0.00013698,2]
[335725123,1724464244592,-500.0,0.00013698,2]
[335725124,1724464244601,-1388.95,0.00013698,2]
[335725125,1724464244611,-580.56,0.00013698,2]
[335725126,1724464244622,-1134.46,0.00013698,2]
[335725127,1724464244632,-793.08,0.00013698,2]
[335725128,1724464244642,-680.84,0.00013698,2]
[335725129,1724464244652,-500.0,0.00013698,2]
[335725130,1724464244663,-500.0,0.00013698,2]
[335725131,1724464244672,-500.0,0.00013698,2]
[335725132,1724464244682,-500.0,0.00013698,2]
[335725133,1724464244691,-2104.95,0.00013698,2]
[335725134,1724464244701,-1339.69,0.00013698,2]
[335725135,1724464244710,-500.0,0.00013698,2]
[335725136,1724464244719,-500.0,0.00013698,2]
[335725137,1724464244730,-585.96,0.00013698,2]
[335725138,1724464244739,-500.61120877,0.00013698,2]
[335725139,1724464244749,-500.0,0.00013698,2]
[335725140,1724464244759,-2158.6,0.00013698,2]
[335725141,1724464244769,-500.0,0.00013698,2]
[335725142,1724464244778,-500.0,0.00013698,2]
[335725143,1724464244787,-834.3,0.00013698,2]
[335725144,1724464244797,-500.0,0.00013698,2]
[335725145,1724464244807,-500.0,0.00013698,2]
[335725146,1724464244816,-500.0,0.00013698,2]
[335725147,1724464244825,-500.0,0.00013698,2]
[335725148,1724464244834,-500.0,0.00013698,2]
[335725149,1724464244844,-500.0,0.00013698,2]
[335725150,1724464244853,-621.58296707,0.00013698,2]
[335725151,1724464244863,-500.0,0.00013698,2]
[335725152,1724464244873,-500.0,0.00013698,2]
[335725153,1724464244882,-500.0,0.00013698,2]
[335725154,1724464244891,-1408.67,0.00013698,2]
[335725155,1724464244900,-500.0,0.00013698,2]
[335725156,1724464244909,-18115.6,0.00013698,2]
[335725157,1724464244919,-1222.74,0.00013698,2]
[335725158,1724464244928,-4729.24,0.00013698,2]
[335725159,1724464244938,-841.97,0.00013698,2]
[335725160,1724464244948,-3529.93,0.00013698,2]
[335725161,1724464244957,-760.77,0.00013698,2]
[335725162,1724464244967,-433.15344614,0.00013698,2]
[335725163,1724464244978,-500.0,0.00013698,2]
[335725164,1724464244987,-500.0,0.00013698,2]
[335725165,1724464244997,-500.0,0.00013698,2]
[335725166,1724464245006,-840.87,0.00013698,2]
[335725167,1724464245016,-1000.0,0.00013698,2]
[335725168,1724464245025,-754.85,0.00013698,2]
[335725169,1724464245035,-1490.72,0.00013698,2]
[335725170,1724464245044,-500.0,0.00013698,2]
[335725171,1724464245053,-500.0,0.00013698,2]
[335725172,1724464245062,-150.0,0.00013698,2]
[335725173,1724464245072,-500.71268256,0.00013698,2]
[335725174,1724464245081,-500.0,0.00013698,2]
[335725175,1724464245090,-1851.6,0.00013698,2]
[335725176,1724464245101,-2563.97,0.00013698,2]
[335725177,1724464245110,-2413.3,0.00013698,2]
[335725178,1724464245119,-500.0,0.00013698,2]
[335725179,1724464245128,-690.31,0.00013698,2]
[335725180,1724464245138,-500.0,0.00013698,2]
[335725181,1724464245147,-500.0,0.00013698,2]
[335725182,1724464245157,-500.0,0.00013698,2]
[335725183,1724464245167,-500.0,0.00013698,2]
[335725184,1724464245177,-823.0,0.00013698,2]
[335725185,1724464245185,-607.28,0.00013698,2]
[335725186,1724464245195,-500.0,0.00013698,2]
[335725187,1724464245205,-501.38933766,0.00013698,2]
[335725188,1724464245215,-531.77767104,0.00013698,2]
[335725189,1724464245225,-934.46,0.00013698,2]
[335725190,1724464245236,-1041.37,0.00013698,2]
[335725191,1724464245246,-1813.69,0.00013698,2]
[335725192,1724464245255,-970.27,0.00013698,2]
[335725193,1724464245265,-500.0,0.00013698,2]
[335725194,1724464245274,-500.0,0.00013698,2]
[335725195,1724464245284,-85.70726902,0.00013698,2]
[335725196,1724464245911,-154.85649844,0.00012989,2]
[335725197,1724464245922,-188.65696378,0.00013597,2]
[335725198,1724464245933,-993.72273098,0.00013698,2]
[335725199,1724464245944,-123.76381602,0.00013698,2]
[335725200,1724464245958,-376.23618398,0.00013698,2]
[335725201,1724464245968,-1077.19,0.00013698,2]
[335725202,1724464245981,-1696.08,0.00013698,2]
[335725203,1724464245991,-500.0,0.00013698,2]
[335725205,1724464246001,-518.9,0.00013698,2]
[335725208,1724464246010,-500.0,0.00013698,2]
[335725210,1724464246020,-261.17532049,0.00013698,2]
[335725212,1724464246030,-500.0,0.00013698,2]
[335725214,1724464246039,-500.0,0.00013698,2]
[335725217,1724464246049,-502.05,0.00013698,2]
[335725219,1724464246059,-1437.71,0.00013698,2]
[335725221,1724464246068,-1723.41,0.00013698,2]
[335725222,1724464246077,-500.0,0.00013698,2]
[335725225,1724464246087,-500.0,0.00013698,2]
[335725227,1724464246096,-500.0,0.00013698,2]
[335725228,1724464246106,-500.0,0.00013698,2]
[335725230,1724464246115,-9387.82,0.00013698,2]
[335725232,1724464246124,-669.47,0.00013698,2]
[335725234,1724464246134,-500.0,0.00013698,2]
[335725236,1724464246145,-500.0,0.00013698,2]
[335725237,1724464246154,-500.0,0.00013698,2]
[335725238,1724464246164,-2333.69,0.00013698,2]
[335725239,1724464246173,-500.0,0.00013698,2]
[335725240,1724464246183,-2012.06,0.00013698,2]
[335725241,1724464246192,-708.01,0.00013698,2]
[335725243,1724464246201,-1109.16,0.00013698,2]
[335725244,1724464246210,-500.0,0.00013698,2]
[335725246,1724464246222,-500.0,0.00013698,2]
[335725248,1724464246236,-563.79847369,0.00013698,2]
[335725250,1724464246254,-500.0,0.00013698,2]
[335725252,1724464246265,-500.0,0.00013698,2]
[335725254,1724464246274,-500.0,0.00013698,2]
[335725255,1724464246283,-500.0,0.00013698,2]
[335725256,1724464246292,-539.6,0.00013698,2]
[335725257,1724464246301,-500.0,0.00013698,2]
[335725258,1724464246310,-500.0,0.00013698,2]
[335725259,1724464246319,-500.0,0.00013698,2]
[335725260,1724464246328,-500.0,0.00013698,2]
[335725261,1724464246338,-743.69,0.00013698,2]
[335725262,1724464246347,-377.1852082,0.00013698,2]
[335725263,1724464246357,-500.37530072,0.00013698,2]
[335725264,1724464246366,-4603.2,0.00013698,2]
[335725265,1724464246376,-500.0,0.00013698,2]
[335725266,1724464246386,-1573.46,0.00013698,2]
[335725267,1724464246396,-500.0,0.00013698,2]
[335725268,1724464246405,-633.08,0.00013698,2]
[335725270,1724464246414,-500.0,0.00013698,2]
[335725272,1724464246424,-500.0,0.00013698,2]
[335725274,1724464246433,-500.0,0.00013698,2]
[335725275,1724464246442,-724.46,0.00013698,2]
[335725276,1724464246451,-817.23,0.00013698,2]
[335725277,1724464246461,-500.0,0.00013698,2]
[335725278,1724464246470,-500.0,0.00013698,2]
[335725279,1724464246485,-500.0,0.00013698,2]
[335725280,1724464246495,-500.0,0.00013698,2]
[335725281,1724464246504,-704.81,0.00013698,2]
[335725282,1724464246513,-3635.77,0.00013698,2]
[335725283,1724464246522,-808.71,0.00013698,2]
[335725284,1724464246532,-501.70995221,0.00013698,2]
[335725285,1724464246541,-500.0,0.00013698,2]
[335725286,1724464246551,-11879.43,0.00013698,2]
[335725287,1724464246560,-540.15,0.00013698,2]
[335725288,1724464246570,-500.0,0.00013698,2]
[335725289,1724464246579,-540.15,0.00013698,2]
[335725290,1724464246589,-500.0,0.00013698,2]
[335725291,1724464246599,-540.15,0.00013698,2]
[335725292,1724464246609,-540.15,0.00013698,2]
[335725293,1724464246620,-540.15,0.00013698,2]
[335725294,1724464246630,-540.15,0.00013698,2]
[335725295,1724464246639,-540.15,0.00013698,2]
[335725296,1724464246649,-540.15,0.00013698,2]
[335725297,1724464246658,-500.0,0.00013698,2]
[335725298,1724464246669,-540.15,0.00013698,2]
[335725299,1724464246678,-540.15,0.00013698,2]
[335725300,1724464246687,-540.15,0.00013698,2]
[335725301,1724464246698,-563.09,0.00013698,2]
[335725302,1724464246707,-540.15,0.00013698,2]
[335725303,1724464246716,-540.15,0.00013698,2]
[335725304,1724464246729,-540.15,0.00013698,2]
[335725305,1724464246738,-6416.23,0.00013698,2]
[335725306,1724464246747,-540.15,0.00013698,2]
[335725307,1724464246757,-540.15,0.00013698,2]
[335725308,1724464246766,-500.0,0.00013698,2]
[335725309,1724464246775,-7888.79,0.00013698,2]
[335725310,1724464246785,-540.15,0.00013698,2]
[335725311,1724464246794,-540.15,0.00013698,2]
[335725312,1724464246803,-978.8,0.00013698,2]
[335725313,1724464246813,-540.15,0.00013698,2]
[335725314,1724464246822,-540.15,0.00013698,2]
[335725315,1724464246831,-540.15,0.00013698,2]
[335725316,1724464246840,-540.15,0.00013698,2]
[335725317,1724464246849,-540.15,0.00013698,2]
[335725318,1724464246858,-500.0,0.00013698,2]
[335725319,1724464246867,-540.35,0.00013698,2]
[335725320,1724464246878,-500.0,0.00013698,2]
[335725321,1724464246887,-2010.47,0.00013698,2]
[335725322,1724464246896,-500.0,0.00013698,2]
[335725323,1724464246906,-504.19437505,0.00013698,2]
[335725324,1724464246915,-744.33,0.00013698,2]
[335725325,1724464246924,-500.0,0.00013698,2]
[335725326,1724464246933,-500.0,0.00013698,2]
[335725327,1724464246942,-9688.23,0.00013698,2]
[335725328,1724464246952,-1101.21,0.00013698,2]
[335725329,1724464246961,-500.0,0.00013698,2]
[335725330,1724464246971,-3545.09,0.00013698,2]
[335725331,1724464246984,-500.97681294,0.00013698,2]
[335725332,1724464246993,-500.0,0.00013698,2]
[335725333,1724464247002,-500.0,0.00013698,2]
[335725334,1724464247012,-500.0,0.00013698,2]
[335725335,1724464247022,-500.0,0.00013698,2]
[335725336,1724464247031,-500.0,0.00013698,2]
[335725337,1724464247224,-500.0,0.00013698,2]
[335725338,1724464247236,-500.0,0.00013698,2]
[335725339,1724464247245,-654.98,0.00013698,2]
[335725340,1724464247254,-790.25,0.00013698,2]
[335725341,1724464247263,-500.0,0.00013698,2]
[335725342,1724464247273,-500.0,0.00013698,2]
[335725343,1724464247282,-258.10822085,0.00013698,2]
[335725344,1724464247291,-1059.57,0.00013698,2]
[335725345,1724464247301,-500.0,0.00013698,2]
[335725346,1724464247313,-500.0,0.00013698,2]
[335725347,1724464247322,-883.54,0.00013698,2]
[335725348,1724464247331,-699.1,0.00013698,2]
[335725349,1724464247340,-551.34,0.00013698,2]
[335725350,1724464247349,-11182.54,0.00013698,2]
[335725351,1724464247358,-1945.31,0.00013698,2]
[335725352,1724464247368,-500.0,0.00013698,2]
[335725353,1724464247377,-501.04688367,0.00013698,2]
[335725354,1724464247387,-555.52,0.00013698,2]
[335725355,1724464247396,-827.42,0.00013698,2]
[335725356,1724464247406,-2605.99,0.00013698,2]
[335725357,1724464247415,-500.0,0.00013698,2]
[335725358,1724464247424,-2516.21,0.00013698,2]
[335725359,1724464247434,-500.0,0.00013698,2]
[335725360,1724464247444,-6317.55,0.00013698,2]
[335725361,1724464247453,-500.0,0.00013698,2]
[335725362,1724464247463,-500.0,0.00013698,2]
[335725363,1724464247472,-500.0,0.00013698,2]
[335725364,1724464247485,-500.0,0.00013698,2]
[335725365,1724464247494,-846.74,0.00013698,2]
[335725366,1724464247505,-500.0,0.00013698,2]
[335725367,1724464247515,-500.0,0.00013698,2]
[335725368,1724464247527,-254.71393384,0.00013698,2]
[335725369,1724464247537,-500.0,0.00013698,2]
[335725370,1724464247547,-500.0,0.00013698,2]
[335725371,1724464247558,-601.68,0.00013698,2]
[335725372,1724464247567,-500.0,0.00013698,2]
[335725373,1724464247576,-501.30608388,0.00013698,2]
[335725374,1724464247585,-500.0,0.00013698,2]
[335725375,1724464247595,-651.24,0.00013698,2]
[335725376,1724464247604,-9902.71,0.00013698,2]
[335725377,1724464247614,-1208.98,0.00013698,2]
[335725378,1724464247626,-500.0,0.00013698,2]
[335725379,1724464247636,-940.13,0.00013698,2]
[335725380,1724464247645,-3587.86,0.00013698,2]
[335725381,1724464247655,-500.0,0.00013698,2]
[335725382,1724464247665,-500.0,0.00013698,2]
[335725383,1724464247675,-500.0,0.00013698,2]
[335725384,1724464247684,-689.04,0.00013698,2]
[335725385,1724464247695,-500.0,0.00013698,2]
[335725386,1724464247704,-500.0,0.00013698,2]
[335725387,1724464247714,-500.0,0.00013698,2]
[335725388,1724464247727,-500.0,0.00013698,2]
[335725389,1724464247737,-500.0,0.00013698,2]
[335725390,1724464247746,-213.26385743,0.00013698,2]
[335725391,1724464247755,-1410.1,0.00013698,2]
[335725392,1724464247764,-869.7,0.00013698,2]
[335725393,1724464247773,-590.28,0.00013698,2]
[335725394,1724464247782,-500.0,0.00013698,2]
[335725395,1724464247792,-500.0,0.00013698,2]
[335725396,1724464247802,-1311.64,0.00013698,2]
[335725397,1724464247811,-500.0,0.00013698,2]
[335725398,1724464247820,-759.36,0.00013698,2]
[335725399,1724464247830,-500.0,0.00013698,2]
[335725400,1724464247839,-2822.86,0.00013698,2]
[335725401,1724464247850,-500.0,0.00013698,2]
[335725402,1724464247861,-500.0,0.00013698,2]
[335725403,1724464247871,-500.0,0.00013698,2]
[335725404,1724464247880,-500.0,0.00013698,2]
[335725405,1724464247890,-500.0,0.00013698,2]
[335725406,1724464247899,-500.0,0.00013698,2]
[335725407,1724464247908,-560.87,0.00013698,2]
[335725408,1724464247919,-9192.27,0.00013698,2]
[335725409,1724464247928,-695.47,0.00013698,2]
[335725410,1724464247938,-500.0,0.00013698,2]
[335725411,1724464247947,-501.60739766,0.00013698,2]
[335725412,1724464247958,-2902.13,0.00013698,2]
[335725413,1724464247968,-1078.47,0.00013698,2]
[335725414,1724464247977,-500.0,0.00013698,2]
[335725415,1724464247986,-500.0,0.00013698,2]
[335725416,1724464247996,-566.24,0.00013698,2]
[335725417,1724464248005,-596.19,0.00013698,2]
[335725418,1724464248015,-645.85,0.00013698,2]
[335725419,1724464248028,-863.0,0.00013698,2]
[335725420,1724464248040,-953.93,0.00013698,2]
[335725421,1724464248050,-4642.81,0.00013698,2]
[335725422,1724464248060,-543.43,0.00013698,2]
[335725423,1724464248070,-500.0,0.00013698,2]
[335725424,1724464248080,-500.0,0.00013698,2]
[335725425,1724464248091,-500.0,0.00013698,2]
[335725426,1724464248101,-14076.58,0.00013698,2]
[335725427,1724464248112,-500.0,0.00013698,2]
[335725428,1724464248123,-500.0,0.00013698,2]
[335725429,1724464248134,-1302.19,0.00013698,2]
[335725430,1724464248145,-2065.4,0.00013698,2]
[335725431,1724464248155,-500.0,0.00013698,2]
[335725432,1724464248165,-6753.19,0.00013698,2]
[335725433,1724464248175,-500.0,0.00013698,2]
[335725434,1724464248184,-1707.88,0.00013698,2]
[335725435,1724464248193,-500.0,0.00013698,2]
[335725436,1724464248203,-500.0,0.00013698,2]
[335725437,1724464248213,-500.0,0.00013698,2]
[335725438,1724464248223,-2079.05,0.00013698,2]
[335725439,1724464248234,-500.0,0.00013698,2]
[335725440,1724464248243,-500.0,0.00013698,2]
[335725441,1724464248252,-2192.77,0.00013698,2]
[335725442,1724464248262,-688.49,0.00013698,2]
[335725443,1724464248272,-500.0,0.00013698,2]
[335725444,1724464248282,-843.54,0.00013698,2]
[335725445,1724464248291,-690.88,0.00013698,2]
[335725446,1724464248302,-903.37,0.00013698,2]
[335725447,1724464248312,-500.0,0.00013698,2]
[335725448,1724464248323,-578.52,0.00013698,2]
[335725449,1724464248332,-1841.0,0.00013698,2]
[335725450,1724464248342,-861.37,0.00013698,2]
[335725451,1724464248351,-500.0,0.00013698,2]
[335725452,1724464248361,-853.04,0.00013698,2]
[335725453,1724464248371,-2219.84,0.00013698,2]
[335725454,1724464248380,-1899.1,0.00013698,2]
[335725455,1724464248390,-500.0,0.00013698,2]
[335725456,1724464248399,-500.0,0.00013698,2]
[335725457,1724464248408,-500.0,0.00013698,2]
[335725458,1724464248417,-721.92,0.00013698,2]
[335725459,1724464248428,-500.0,0.00013698,2]
[335725460,1724464248438,-500.0,0.00013698,2]
[335725461,1724464248447,-500.0,0.00013698,2]
[335725462,1724464248458,-168.56645819,0.00013698,2]
[335725463,1724464248468,-500.0,0.00013698,2]
[335725464,1724464248477,-500.25966525,0.00013698,2]
[335725465,1724464248488,-537.74,0.00013698,2]
[335725466,1724464248498,-724.21,0.00013698,2]
[335725467,1724464248507,-500.85815529,0.00013698,2]
[335725468,1724464248519,-500.0,0.00013698,2]
[335725469,1724464248528,-12018.96,0.00013698,2]
[335725470,1724464248540,-2673.77,0.00013698,2]
[335725471,1724464248551,-582.02,0.00013698,2]
[335725472,1724464248561,-3016.97,0.00013698,2]
[335725473,1724464248571,-500.0,0.00013698,2]
[335725474,1724464248581,-500.0,0.00013698,2]
[335725475,1724464248591,-525.11,0.00013698,2]
[335725476,1724464248601,-940.2,0.00013698,2]
[335725477,1724464248611,-906.6,0.00013698,2]
[335725478,1724464248623,-332.92760639,0.00013698,2]
[335725479,1724464248633,-1977.68,0.00013698,2]
[335725480,1724464248642,-500.0,0.00013698,2]
[335725481,1724464248653,-664.47,0.00013698,2]
[335725482,1724464248665,-500.0,0.00013698,2]
[335725483,1724464248676,-600.75,0.00013698,2]
[335725484,1724464248686,-500.0,0.00013698,2]
[335725485,1724464248695,-500.0,0.00013698,2]
[335725486,1724464248707,-552.54,0.00013698,2]
[335725487,1724464248717,-500.0,0.00013698,2]
[335725488,1724464248728,-3650.56,0.00013698,2]
[335725489,1724464248739,-647.05009961,0.00013698,2]
[335725490,1724464248748,-1249.29,0.00013698,2]
[335725491,1724464248758,-305.24911577,0.00013698,2]
[335725492,1724464248769,-3000.0,0.00013699,2]
[335725493,1724464248779,-1252.757158,0.00013699,2]
[335725494,1724464248788,-1015.86971375,0.00013699,2]
[335725495,1724464248798,-1015.86971375,0.00013699,2]
[335725496,1724464248807,-1015.86971375,0.00013699,2]
[335725497,1724464248817,-1015.86971375,0.00013699,2]
[335725498,1724464248828,-1015.86971375,0.00013699,2]
[335725499,1724464248838,-1015.86971375,0.00013699,2]
[335725500,1724464248848,-1015.86971375,0.00013699,2]
[335725501,1724464248858,-1015.86971375,0.00013699,2]
[335725502,1724464248867,-1015.86971375,0.00013699,2]
[335725503,1724464248877,-1015.86971375,0.00013699,2]
[335725504,1724464248886,-1015.86971375,0.00013699,2]
[335725505,1724464248896,-1015.86971375,0.00013699,2]
[335725506,1724464248906,-1015.86971375,0.00013699,2]
[335725507,1724464248915,-1015.86971375,0.00013699,2]
[335725508,1724464248925,-1015.86971375,0.00013699,2]
[335725509,1724464248934,-1015.86971375,0.00013699,2]
[335725510,1724464248944,-1015.86971375,0.00013699,2]
[335725511,1724464248954,-1015.86971375,0.00013699,2]
[335725512,1724464248963,-1015.86971375,0.00013699,2]
[335725513,1724464248973,-1015.86971375,0.00013699,2]
[335725514,1724464248983,-1015.86971375,0.00013699,2]
[335725515,1724464248992,-1015.86971375,0.00013699,2]
[335725516,1724464249002,-1015.86971375,0.00013699,2]
[335725517,1724464249012,-1015.86971375,0.00013699,2]
[335725518,1724464249021,-1015.86971375,0.00013699,2]
[335725519,1724464249031,-1015.86971375,0.00013699,2]
[335725520,1724464249040,-1015.86971375,0.00013699,2]
[335725521,1724464249050,-1015.86971375,0.00013699,2]
[335725522,1724464249059,-1015.86971375,0.00013699,2]
[335725523,1724464249069,-1015.86971375,0.00013699,2]
[335725524,1724464249079,-194.91980144,0.00013699,2]
[335725525,1724464249088,-150.112233,0.000137,2]
[335725526,1724464249098,-150.112233,0.000137,2]
[335725527,1724464249108,-155.975646,0.000137,2]
[335725528,1724464249117,-501.73403448,0.00013765,2]
[335725529,1724464249127,-150.112233,0.000138,2]
[335725530,1724464249136,-150.112233,0.000138,2]
[335725531,1724464249145,-150.112233,0.000138,2]
[335725532,1724464249155,-150.112233,0.000138,2]
[335725533,1724464249164,-153.0,0.00013881,2]
[335725534,1724464249174,-150.112233,0.000139,2]
[335725535,1724464249184,-150.112233,0.000139,2]
[335725536,1724464249194,-150.112233,0.000139,2]
[335725537,1724464249204,-150.112233,0.000139,2]
[335725538,1724464249213,-150.112233,0.000139,2]
[335725539,1724464249222,-409.212231,0.00013945,2]
[335725540,1724464249233,-409.212231,0.00013945,2]
[335725541,1724464249243,-409.212231,0.00013945,2]
[335725542,1724464249252,-409.212231,0.00013945,2]
[335725543,1724464249261,-409.212231,0.00013945,2]
[335725544,1724464249270,-409.212231,0.00013945,2]
[335725545,1724464249280,-409.212231,0.00013945,2]
[335725546,1724464249289,-409.212231,0.00013945,2]
[335725547,1724464249299,-409.212231,0.00013945,2]
[335725548,1724464249308,-409.212231,0.00013945,2]
[335725549,1724464249317,-409.212231,0.00013945,2]
[335725550,1724464249327,-409.212231,0.00013945,2]
[335725551,1724464249336,-409.212231,0.00013945,2]
[335725552,1724464249345,-500.0,0.00013972,2]
[335725553,1724464249355,-500.0,0.00013972,2]
[335725554,1724464249365,-873.4,0.00013972,2]
[335725555,1724464249374,-500.0,0.00013972,2]
[335725556,1724464249384,-500.0,0.00013972,2]
[335725557,1724464249393,-500.0,0.00013972,2]
[335725558,1724464249402,-500.0,0.00013972,2]
[335725559,1724464249412,-500.0,0.00013972,2]
[335725560,1724464249421,-501.06636329,0.00013972,2]
[335725561,1724464249431,-500.0,0.00013972,2]
[335725562,1724464249440,-678.93,0.00013972,2]
[335725563,1724464249451,-500.0,0.00013972,2]
[335725564,1724464249460,-501.38961216,0.00013972,2]
[335725565,1724464249470,-500.0,0.00013972,2]
[335725566,1724464249479,-500.0,0.00013972,2]
[335725567,1724464249499,-500.0,0.00013972,2]
[335725568,1724464249509,-500.0,0.00013972,2]
[335725569,1724464249518,-500.0,0.00013972,2]
[335725570,1724464249527,-500.0,0.00013972,2]
[335725571,1724464249536,-500.0,0.00013972,2]
[335725572,1724464249545,-500.0,0.00013972,2]
[335725573,1724464249555,-984.48,0.00013972,2]
[335725574,1724464249564,-500.0,0.00013972,2]
[335725575,1724464249573,-500.0,0.00013972,2]
[335725576,1724464249582,-500.0,0.00013972,2]
[335725577,1724464249591,-500.0,0.00013972,2]
[335725578,1724464249601,-500.0,0.00013972,2]
[335725579,1724464249610,-500.0,0.00013972,2]
[335725580,1724464249623,-500.0,0.00013972,2]
[335725581,1724464249632,-500.0,0.00013972,2]
[335725582,1724464249642,-500.0,0.00013972,2]
[335725583,1724464249651,-500.0,0.00013972,2]
[335725584,1724464249660,-1099.69,0.00013972,2]
[335725585,1724464249670,-609.41,0.00013972,2]
[335725586,1724464249679,-919.53,0.00013972,2]
[335725587,1724464249688,-1032.3,0.00013972,2]
[335725588,1724464249700,-500.0,0.00013972,2]
[335725589,1724464249709,-206.16780181,0.00013972,2]
[335725590,1724464249719,-500.0,0.00013972,2]
[335725591,1724464249728,-587.85,0.00013972,2]
[335725592,1724464249738,-1233.31,0.00013972,2]
[335725593,1724464249747,-1704.96,0.00013972,2]
[335725594,1724464249757,-557.23,0.00013972,2]
[335725595,1724464249767,-500.0,0.00013972,2]
[335725596,1724464249776,-638.26,0.00013972,2]
[335725597,1724464249786,-500.0,0.00013972,2]
[335725598,1724464249796,-502.7374095,0.00013972,2]
[335725599,1724464249805,-500.0,0.00013972,2]
[335725600,1724464249815,-689.13,0.00013972,2]
[335725601,1724464249825,-500.0,0.00013972,2]
[335725602,1724464249834,-926.7,0.00013972,2]
[335725603,1724464249843,-501.61840062,0.00013972,2]
[335725604,1724464249853,-500.0,0.00013972,2]
[335725605,1724464249862,-500.0,0.00013972,2]
[335725606,1724464249872,-500.0,0.00013972,2]
[335725607,1724464249881,-500.0,0.00013972,2]
[335725608,1724464249891,-417.61929196,0.00013972,2]
[335725609,1724464249900,-500.0,0.00013972,2]
[335725610,1724464249910,-500.0,0.00013972,2]
[335725611,1724464249920,-500.0,0.00013972,2]
[335725612,1724464249929,-500.0,0.00013972,2]
[335725613,1724464249938,-500.0,0.00013972,2]
[335725614,1724464249947,-500.0,0.00013972,2]
[335725615,1724464249956,-665.73,0.00013972,2]
[335725616,1724464249965,-500.0,0.00013972,2]
[335725617,1724464249974,-905.06,0.00013972,2]
[335725618,1724464249988,-500.0,0.00013972,2]